bitfinex/quotes_ETHUSD_20251217
["timestamp","ask_amount","ask_price","bid_price","bid_amount"]
[1766005133144,2.8331,2824.2,2823.4,0.99854737]
[1766005133679,0.001,2823.8,2823.4,0.99854737]
[1766005134671,0.001,2824.3,2823.4,4.54033257]
[1766005135174,2.8341,2824.3,2823.4,0.99854737]
[1766005135482,2.8331,2824.2,2823.4,0.99854737]
[1766005135686,2.8331,2824.2,2823.5,0.45404792]
[1766005137276,0.001,2824.3,2823.5,0.45404792]
[1766005137476,0.001,2824.3,2823.2,4.570438]
[1766005137680,2.2226,2823.9,2823.0,3.68427745]
[1766005137885,2.8331,2823.8,2823.0,0.46438023]
[1766005139981,0.001,2824.3,2822.7,3.54264612]
[1766005140290,0.35535038,2824.3,2822.9,0.04933399]
[1766005140541,2.8341,2824.5,2823.1,0.46438023]
[1766005140794,0.001,2824.5,2823.1,0.46438023]
[1766005140966,0.6105,2824.1,2822.7,0.35446461]
[1766005141167,0.405504,2824.3,2822.6,0.14198217]
[1766005141353,0.6105,2823.6,2822.6,0.14198217]
[1766005141685,0.405504,2824.4,2822.7,0.46438023]
[1766005141880,2.2226,2824.3,2823.0,0.002]
[1766005142183,2.2226,2823.7,2823.0,0.002]
[1766005142382,0.46538023,2824.5,2823.1,3.54220537]
[1766005142383,2.8331,2824.4,2823.1,3.54220537]
[1766005142583,0.46438023,2824.3,2823.1,3.54220537]
[1766005142881,0.6105,2824.0,2823.0,0.002]
[1766005143081,2.8331,2823.6,2823.0,0.002]
[1766005143254,3.94625967,2824.3,2823.0,0.002]
[1766005143255,0.405504,2824.1,2823.0,0.002]
[1766005143460,2.8331,2824.0,2823.0,0.002]
[1766005143661,0.3238604,2823.9,2823.0,0.002]
[1766005143979,2.8331,2824.2,2823.0,0.002]
[1766005144387,0.001,2824.5,2823.3,0.46438023]
[1766005144594,2.8341,2824.8,2823.4,0.564]
[1766005144777,0.001,2824.8,2823.2,7.0841598]
[1766005144981,0.001,2824.8,2823.3,1.22919621]
[1766005144982,2.8331,2824.4,2823.3,1.22919621]
[1766005145197,0.001,2824.8,2823.3,1.37115117]
[1766005145378,0.001,2824.8,2823.4,0.405504]
[1766005145916,2.8331,2824.7,2823.5,0.564]
[1766005146213,0.001,2824.8,2823.6,0.405504]
[1766005146419,0.001,2825.4,2824.0,0.86988423]
[1766005146579,0.001,2825.7,2824.2,0.405504]
[1766005146971,0.001,2825.7,2824.4,0.86988423]
[1766005147186,0.001,2825.7,2824.3,0.46438023]
[1766005147187,0.6105,2825.5,2824.3,0.46438023]
[1766005147397,2.2226,2825.4,2824.3,1.02269336]
[1766005147786,2.8331,2825.3,2824.3,1.02269336]
[1766005148190,2.8331,2825.3,2824.3,0.55831313]
[1766005148397,2.8331,2825.3,2824.3,0.46438023]
[1766005148773,2.8331,2825.3,2824.2,0.564]
[1766005149173,3.53998475,2825.7,2823.3,0.90677094]
[1766005149174,0.405504,2825.4,2823.3,0.90677094]
[1766005149394,2.8331,2824.8,2823.4,0.564]
[1766005149600,2.8331,2824.8,2823.3,0.14195496]
[1766005149898,2.8331,2824.8,2823.0,0.566]
[1766005149899,0.405504,2824.2,2823.0,0.002]
[1766005150102,0.5931,2823.4,2822.4,0.002]
[1766005150304,0.405504,2823.9,2822.4,3.54507332]
[1766005150471,2.5862,2823.9,2822.4,0.567]
[1766005150676,2.5862,2823.9,2822.8,3.54250846]
[1766005150902,2.5862,2823.9,2823.3,0.002]
[1766005151410,0.405504,2824.4,2823.3,0.002]
[1766005151582,0.46438023,2824.5,2823.3,0.002]
[1766005151899,0.5867,2824.5,2823.3,0.002]
[1766005152100,0.5867,2824.3,2823.3,0.002]
[1766005152702,2.7538,2824.3,2823.3,0.002]
[1766005153203,0.405504,2824.7,2823.3,0.002]
[1766005153204,2.7538,2824.1,2823.3,0.002]
[1766005153410,0.5867,2824.6,2823.3,0.002]
[1766005153576,2.1671,2824.3,2823.3,0.002]
[1766005153780,2.1671,2823.9,2823.3,0.002]
[1766005154002,2.7538,2823.9,2823.3,0.002]
[1766005154303,2.1671,2824.0,2823.3,0.002]
[1766005154601,2.7538,2823.6,2823.3,0.002]
[1766005154772,0.405504,2824.1,2823.3,0.002]
[1766005154975,0.5867,2823.8,2822.5,3.54494281]
[1766005155199,0.46438023,2824.5,2822.5,3.54494281]
[1766005155200,2.7538,2823.7,2822.6,0.83327444]
[1766005155405,2.1671,2823.8,2822.6,0.36889421]
[1766005155603,2.7538,2823.9,2822.6,0.36889421]
[1766005155806,0.405504,2823.9,2822.6,0.36889421]
[1766005156013,2.1671,2823.5,2822.6,0.36889421]
[1766005156222,2.7538,2823.5,2822.6,0.36889421]
[1766005156380,2.7538,2823.4,2822.6,0.36889421]
[1766005156582,2.7538,2823.9,2822.6,0.36889421]
[1766005156817,2.1671,2823.9,2822.7,0.03542707]
[1766005156984,2.7538,2823.8,2822.7,3.57808633]
[1766005157308,2.1671,2824.4,2822.8,1.02938023]
[1766005157609,0.5867,2824.1,2822.9,1.37647818]
[1766005157811,2.7538,2824.1,2822.9,0.81147818]
[1766005158011,0.5867,2824.1,2822.9,0.81147818]
[1766005158215,0.5867,2823.9,2822.8,0.46438023]
[1766005158416,2.1671,2824.3,2822.8,0.46438023]
[1766005158579,2.7538,2824.2,2822.8,0.46438023]
[1766005158779,0.5867,2823.9,2822.8,0.46438023]
[1766005158976,0.5867,2823.9,2822.8,4.00684755]
[1766005159184,2.1671,2824.2,2822.9,0.81145418]
[1766005159400,0.405504,2824.1,2822.9,0.81145418]
[1766005159717,2.7538,2823.8,2822.9,0.46438023]
[1766005159918,2.1671,2824.2,2822.6,0.36889421]
[1766005160228,2.7538,2823.8,2822.5,0.37089421]
[1766005160415,0.405504,2824.0,2822.5,0.37089421]
[1766005160620,0.5867,2823.9,2822.6,3.54276766]
[1766005160937,2.7538,2823.8,2822.7,3.54268873]
[1766005161235,2.1671,2823.8,2822.5,0.46638023]
[1766005161418,2.1671,2823.8,2822.6,0.46438023]
[1766005161742,2.1671,2823.8,2822.5,0.002]
[1766005161896,0.405504,2823.8,2822.5,0.002]
[1766005162100,2.1671,2823.7,2822.5,0.002]
[1766005162295,0.2572604,2823.6,2822.6,0.35470154]
[1766005162642,0.405504,2823.8,2822.5,0.002]
[1766005162643,2.1671,2823.8,2822.5,0.002]
[1766005162802,2.1671,2823.6,2822.5,0.002]
[1766005163118,2.7538,2823.1,2822.5,0.002]
[1766005163720,0.405504,2823.5,2822.5,0.002]
[1766005163916,2.1671,2823.4,2822.5,0.002]
[1766005164098,0.405504,2823.5,2822.5,0.002]
[1766005164099,2.1671,2822.8,2822.5,0.002]
[1766005164304,2.7538,2823.1,2822.5,0.002]
[1766005164497,2.1671,2823.0,2822.5,0.002]
[1766005164697,2.7538,2822.6,2822.4,0.002]
[1766005164898,2.7538,2822.6,2822.1,0.002]
[1766005164899,2.1671,2823.0,2822.1,0.002]
[1766005165111,2.7538,2822.7,2822.1,0.002]
[1766005165432,0.46438023,2823.2,2822.1,0.002]
[1766005165633,2.7538,2823.1,2822.1,0.002]
[1766005165932,0.405504,2823.0,2822.1,0.002]
[1766005166130,0.5867,2822.4,2821.9,0.002]
[1766005166430,2.1671,2822.9,2821.9,0.002]
[1766005166643,2.7538,2822.9,2821.9,0.002]
[1766005166943,3.02918,2822.9,2821.9,0.002]
[1766005167341,2.7538,2823.5,2821.9,0.002]
[1766005167528,0.46438023,2823.4,2821.9,0.05133399]
[1766005168232,2.7538,2823.5,2822.0,0.405504]
[1766005168404,2.1671,2824.0,2822.3,0.04933399]
[1766005168606,0.35897943,2824.4,2822.3,0.566]
[1766005168607,0.5867,2824.2,2822.3,0.566]
[1766005168907,0.405504,2823.9,2822.3,0.566]
[1766005169135,2.7538,2823.8,2822.5,0.46438023]
[1766005169436,2.1671,2824.3,2822.5,0.46438023]
[1766005169608,2.7538,2824.3,2822.6,2.0797121]
[1766005169802,4.00474545,2824.6,2822.6,2.0797121]
[1766005170003,2.7538,2823.8,2822.5,0.46438023]
[1766005170505,4.00474545,2824.6,2822.5,0.46438023]
[1766005170705,0.04933399,2824.8,2822.6,0.405504]
[1766005170706,2.7538,2824.3,2822.6,0.405504]
[1766005170905,2.7538,2824.7,2822.6,0.405504]
[1766005171127,2.1671,2824.2,2822.8,0.46438023]
[1766005171408,2.1671,2824.9,2822.9,0.75497949]
[1766005171711,2.1671,2825.0,2822.9,0.44092856]
[1766005171911,1.06579452,2825.3,2823.3,0.46438023]
[1766005171912,7.08000991,2825.3,2823.3,0.46438023]
[1766005172133,2.572604,2824.6,2822.8,0.46438023]
[1766005172341,2.7538,2824.2,2822.8,0.46438023]
[1766005172516,2.7538,2824.2,2822.9,1.7253284]
[1766005173246,0.46438023,2824.6,2822.6,3.542764]
[1766005173407,0.405504,2824.6,2822.8,7.08511]
[1766005173612,0.405504,2824.2,2822.8,7.08511]
[1766005173806,0.3159304,2824.1,2822.9,1.17289123]
[1766005174432,0.001,2824.6,2823.0,0.566]
[1766005174628,0.46538023,2824.6,2823.1,0.04933399]
[1766005174837,0.001,2824.6,2823.1,0.04933399]
[1766005175037,0.001,2824.6,2822.9,0.46438023]
[1766005175308,0.5867,2823.9,2822.9,0.92876046]
[1766005175566,2.7538,2823.9,2823.0,0.44712777]
[1766005176034,0.46438023,2824.4,2822.5,0.002]
[1766005176035,0.5867,2824.4,2822.5,0.002]
[1766005176244,0.5867,2823.6,2822.5,0.002]
[1766005176516,0.46438023,2824.2,2822.7,3.54265078]
[1766005176718,2.1671,2823.7,2822.7,3.54265078]
[1766005176939,0.405504,2824.0,2822.7,0.46438023]
[1766005177140,0.5867,2824.1,2822.9,0.46438023]
[1766005177313,2.7538,2824.0,2822.9,0.46438023]
[1766005177811,2.1671,2824.5,2822.9,0.46438023]
[1766005178012,2.7538,2824.3,2822.9,0.46438023]
[1766005178253,0.3159304,2824.2,2823.0,1.36566578]
[1766005178414,0.001,2824.6,2823.1,0.405504]
[1766005179259,0.001,2824.6,2823.3,0.46438023]
[1766005179624,0.001,2825.6,2824.4,9.70348909]
[1766005179931,0.001,2825.6,2824.5,0.97034891]
[1766005180143,2.1671,2825.5,2824.2,0.567]
[1766005180323,0.5867,2825.4,2824.6,0.14189605]
[1766005180752,0.001,2825.6,2824.6,0.14189605]
[1766005180753,2.723,2825.2,2824.6,0.14189605]
[1766005180957,0.001,2825.6,2823.8,0.567]
[1766005181118,0.001,2824.2,2824.1,0.46438023]
[1766005181319,2.1468,2825.1,2824.1,1.27573355]
[1766005182160,0.001,2825.4,2824.0,0.46438023]
[1766005182327,2.61118023,2825.3,2824.0,0.46438023]
[1766005183055,2.723,2825.0,2824.0,0.46438023]
[1766005183353,0.46538023,2825.4,2824.0,7.54644331]
[1766005183552,2.724,2825.4,2824.0,7.54644331]
[1766005183724,0.2724,2825.3,2824.1,0.81134433]
[1766005183920,0.001,2825.4,2824.1,0.81134433]
[1766005184250,0.001,2825.4,2824.2,0.405504]
[1766005184452,0.001,2825.6,2824.2,0.405504]
[1766005184655,0.001,2825.8,2824.2,0.86988423]
[1766005184846,0.001,2825.8,2824.3,0.405504]
[1766005185047,0.2735,2825.8,2824.3,0.405504]
[1766005185359,2.723,2826.6,2824.6,0.45483799]
[1766005185656,0.46438023,2826.4,2824.6,0.45483799]
[1766005185856,0.87088423,2826.5,2824.6,0.405504]
[1766005186023,0.405504,2826.3,2824.5,0.46438023]
[1766005186224,2.1468,2825.8,2824.5,0.46438023]
[1766005186447,0.21468,2825.7,2824.5,1.57300053]
[1766005186758,2.723,2825.8,2824.5,2.14100053]
[1766005186949,0.406504,2826.5,2824.5,2.19033452]
[1766005186950,0.46438023,2826.0,2824.5,2.19033452]
[1766005187259,2.723,2826.1,2824.7,0.46438023]
[1766005187444,0.46438023,2826.0,2824.7,0.46438023]
[1766005187647,0.5762,2826.1,2824.7,0.46438023]
[1766005187839,0.5762,2825.7,2824.7,1.39147854]
[1766005188039,2.723,2825.7,2824.7,1.39147854]
[1766005188360,2.723,2826.0,2824.7,1.39147854]
[1766005188657,0.46438023,2825.9,2824.7,1.39147854]
[1766005189060,0.86988423,2826.1,2824.7,1.39147854]
[1766005189358,0.405504,2826.3,2824.7,7.08038951]
[1766005189359,0.5762,2826.3,2824.7,7.08038951]
[1766005189558,1.04058023,2826.0,2824.7,7.08038951]
[1766005189757,2.1468,2825.9,2824.7,7.08038951]
[1766005189955,0.46538023,2826.4,2824.7,3.54019056]
[1766005189956,2.1468,2825.7,2824.7,3.54019056]
[1766005190159,0.46538023,2826.4,2824.7,3.54019056]
[1766005190160,0.5762,2825.8,2824.7,3.54019056]
[1766005190460,2.1468,2825.8,2824.8,1.41811487]
[1766005190661,0.5762,2825.7,2824.8,1.41811487]
[1766005190863,0.46538023,2826.4,2824.8,1.41811487]
[1766005191172,0.46538023,2826.4,2824.9,3.53994831]
[1766005191173,0.405504,2826.2,2824.9,3.53994831]
[1766005191371,0.405504,2826.2,2824.3,0.46438023]
[1766005191372,2.1468,2826.1,2824.3,0.46438023]
[1766005191677,0.405504,2826.2,2824.7,0.405504]
[1766005191964,0.5762,2825.3,2824.3,0.46438023]
[1766005192263,2.1468,2825.9,2824.4,3.94103153]
[1766005192459,0.405504,2826.0,2824.4,3.94103153]
[1766005192460,2.1468,2825.3,2824.4,0.40051216]
[1766005192664,2.1468,2825.3,2824.4,0.46438023]
[1766005192665,2.723,2825.3,2824.4,0.46438023]
[1766005192833,2.1468,2825.4,2823.8,0.04933399]
[1766005193163,2.1468,2824.8,2823.7,1.06450737]
[1766005193362,0.5762,2824.8,2823.7,3.54141189]
[1766005193554,2.9953,2824.8,2823.8,0.81852142]
[1766005193751,0.405504,2824.7,2823.5,1.06457158]
[1766005193954,11.08242876,2825.4,2822.9,0.002]
[1766005193955,2.1468,2824.6,2822.9,0.002]
[1766005194154,0.46438023,2824.1,2822.9,3.54440205]
[1766005194368,3.737,2825.3,2822.9,0.002]
[1766005194369,0.405504,2824.5,2822.9,0.002]
[1766005194540,0.981704,2824.4,2822.9,0.002]
[1766005194864,2.61118023,2823.8,2822.9,0.002]
[1766005195062,2.1468,2823.2,2822.9,0.002]
[1766005195362,0.72549825,2823.7,2822.9,0.002]
[1766005195363,2.98411802,2823.7,2822.9,0.002]
[1766005195661,0.46438023,2823.6,2822.9,0.002]
[1766005196437,2.723,2823.7,2822.9,0.002]
[1766005196664,0.46438023,2824.0,2822.9,0.002]
[1766005196962,3.18738023,2824.4,2822.9,0.002]
[1766005197137,0.87088423,2824.8,2822.9,0.002]
[1766005197337,0.001,2824.8,2823.4,0.405504]
[1766005197568,2.1468,2825.7,2823.6,0.405504]
[1766005197745,1.0645187,2825.7,2824.2,0.46438023]
[1766005198063,2.724,2826.5,2824.7,0.86988423]
[1766005198243,0.001,2826.5,2824.8,0.405504]
[1766005198444,0.04933399,2827.8,2824.8,0.405504]
[1766005198445,0.23395527,2827.8,2824.8,0.405504]
[1766005198644,28.01258033,2829.1,2824.8,0.405504]
[1766005198645,3.53434184,2829.4,2827.6,9.70348909]
[1766005198843,1.2,2830.2,2827.7,0.97034891]
[1766005198844,3.53359829,2830.0,2827.7,0.97034891]
[1766005199065,0.5762,2829.3,2827.0,0.03537318]
[1766005199233,2.723,2828.9,2827.8,1.06304758]
[1766005199438,2.723,2828.8,2827.8,1.06304758]
[1766005199638,2.9953,2828.7,2827.8,1.06304758]
[1766005200062,2.1468,2828.6,2827.8,1.06304758]
[1766005200264,0.2723,2828.7,2827.8,1.06304758]
[1766005200600,2.723,2829.1,2827.8,1.06304758]
[1766005200878,2.723,2829.1,2827.0,14.14927484]
[1766005200879,0.46438023,2828.5,2825.3,3.53933722]
[1766005201042,0.46438023,2828.5,2826.6,3.53780622]
[1766005201043,2.1468,2828.3,2826.6,3.53780622]
[1766005201243,2.723,2827.7,2826.6,1.06304758]
[1766005201570,3.18738023,2827.9,2826.6,3.53781928]
[1766005201769,0.405504,2828.4,2826.7,0.46438023]
[1766005201945,2.723,2828.4,2826.8,0.571]
[1766005202145,3.0002334,2828.3,2826.7,0.46438023]
[1766005202360,0.46438023,2828.2,2826.8,0.405504]
[1766005202561,0.46438023,2828.2,2826.8,0.976504]
[1766005203373,0.46438023,2828.2,2826.9,7.07488768]
[1766005204066,0.46438023,2828.2,2826.9,4.10844384]
[1766005204269,0.46438023,2828.2,2827.0,0.45139478]
[1766005204270,0.34646136,2828.1,2827.0,0.45139478]
[1766005204502,0.0082,2828.4,2827.1,0.405504]
[1766005205297,0.0082,2828.4,2827.3,0.86988423]
[1766005206250,0.0296,2828.4,2827.4,0.571]
[1766005206482,0.001,2829.1,2827.4,0.571]
[1766005206797,0.001,2829.1,2827.4,0.62033399]
[1766005207278,0.001,2829.1,2827.5,7.07338638]
[1766005207481,0.001,2829.1,2827.5,8.28342758]
[1766005207985,2.724,2829.1,2827.5,8.28342758]
[1766005208292,2.1468,2828.3,2827.0,0.45139478]
[1766005208587,2.723,2828.2,2827.3,3.53688311]
[1766005208778,2.723,2828.2,2827.4,0.46438023]
[1766005208975,0.2723,2828.1,2826.9,0.57]
[1766005209194,0.2723,2828.1,2827.3,3.53689309]
[1766005209488,0.2723,2828.1,2827.3,0.46438023]
[1766005209787,2.1468,2828.9,2827.3,0.46438023]
[1766005209952,0.001,2829.1,2827.5,0.405504]
[1766005209953,0.5772,2829.1,2827.5,0.405504]
[1766005210154,0.5772,2829.1,2827.3,0.51371422]
[1766005210155,0.001,2829.1,2827.4,0.405504]
[1766005210352,0.001,2829.1,2827.7,0.405504]
[1766005210558,0.5762,2829.5,2827.9,0.405504]
[1766005210897,2.4298,2829.3,2827.6,0.46438023]
[1766005211066,2.4298,2829.1,2828.0,0.57]
[1766005211398,2.4298,2829.1,2828.2,0.46438023]
[1766005211559,0.27001,2829.4,2828.2,0.46438023]
[1766005211987,0.503,2829.2,2828.2,0.46438023]
[1766005212488,0.001,2828.9,2828.2,0.46438023]
[1766005213463,0.001,2828.9,2827.5,0.04933399]
[1766005213464,0.001,2830.1,2827.3,0.57]
[1766005213693,0.001,2830.1,2825.8,2.85597027]
[1766005213694,1.9268,2829.5,2826.3,13.20105613]
[1766005213860,0.46438023,2829.6,2827.0,3.53727019]
[1766005213861,0.503,2828.6,2827.0,3.53727019]
[1766005214064,2.4298,2828.5,2827.5,3.53663895]
[1766005214373,2.4298,2828.9,2827.8,3.53624829]
[1766005214573,2.4298,2828.9,2827.7,3.53639543]
[1766005214795,1.9268,2829.7,2828.2,3.53581783]
[1766005214961,2.4298,2829.6,2828.3,0.46438023]
[1766005215161,0.503,2829.9,2828.3,0.46438023]
[1766005215358,2.4298,2829.5,2828.5,0.46438023]
[1766005216661,0.24298,2829.4,2828.5,0.46438023]
[1766005217669,0.24298,2829.4,2828.3,0.46438023]
[1766005217872,0.24298,2829.4,2826.8,5.28016029]
[1766005217873,0.405504,2828.7,2827.2,3.53699075]
[1766005218168,0.405504,2829.1,2827.0,3.53728423]
[1766005218368,0.86988423,2829.0,2827.2,0.46438023]
[1766005218592,1.9268,2829.2,2827.4,3.53675617]
[1766005218790,0.503,2828.7,2827.4,3.53675617]
[1766005219011,0.503,2828.9,2827.4,3.53675617]
[1766005219313,1.9268,2828.4,2827.4,3.53677589]
[1766005219514,2.16978,2828.4,2827.4,4.29058535]
[1766005219820,2.4298,2828.9,2827.5,0.46438023]
[1766005219975,2.4298,2828.9,2827.6,0.571]
[1766005220713,1.9268,2829.4,2827.6,0.571]
[1766005220917,2.4298,2829.3,2827.6,0.571]
[1766005221200,0.70736023,2829.2,2827.6,0.571]
[1766005221406,2.67278,2829.2,2827.9,0.46438023]
[1766005221616,2.4298,2829.2,2827.9,0.46438023]
[1766005221910,0.503,2829.2,2828.0,0.57]
[1766005222114,2.4298,2829.1,2827.9,1.03438023]
[1766005223702,2.4298,2829.1,2828.0,3.53606789]
[1766005223912,2.67278,2829.1,2828.1,0.41060679]
[1766005224300,2.67278,2829.1,2828.1,0.87498702]
[1766005224502,0.001,2829.5,2828.1,0.87498702]
[1766005224686,2.4308,2829.5,2828.2,0.57]
[1766005224886,2.4298,2829.4,2828.2,0.57]
[1766005225086,2.4298,2829.4,2828.1,0.87498702]
[1766005225299,2.67288,2829.4,2828.3,0.57]
[1766005225499,2.67288,2829.4,2828.2,0.79471228]
[1766005225698,2.67288,2829.4,2828.4,3.53556781]
[1766005226423,0.503,2829.2,2828.3,0.57]
[1766005226588,3.77740573,2829.4,2827.7,0.46438023]
[1766005226589,0.405504,2829.3,2827.7,0.46438023]
[1766005226916,2.4298,2828.7,2827.8,3.53624974]
[1766005227212,2.4298,2828.7,2827.8,3.53627594]
[1766005227414,0.77172355,2829.2,2827.4,4.29060517]
[1766005227415,0.77172355,2829.2,2827.4,0.75380946]
[1766005227614,0.77172355,2829.2,2827.0,0.002]
[1766005227615,0.503,2829.0,2827.6,3.53656049]
[1766005227813,0.77172355,2829.2,2827.7,0.46438023]
[1766005227814,0.503,2828.6,2827.7,0.46438023]
[1766005228123,2.4298,2828.6,2827.7,0.46438023]
[1766005229720,2.4298,2829.1,2827.7,4.00077031]
[1766005229885,1.9268,2828.9,2827.8,0.75373308]
[1766005230086,2.4298,2828.7,2827.8,0.75373308]
[1766005230921,1.9268,2828.9,2827.8,0.75373308]
[1766005231224,2.4298,2828.6,2827.8,0.75373308]
[1766005231587,0.28941802,2829.0,2827.8,0.75373308]
[1766005231802,1.9268,2828.7,2827.8,0.75373308]
[1766005232020,2.4298,2828.7,2827.9,0.47545268]
[1766005232323,2.4298,2828.7,2827.9,0.93983291]
[1766005233032,2.4298,2829.3,2827.9,1.50983291]
[1766005234033,2.4298,2829.3,2828.1,0.46438023]
[1766005234451,0.24308,2829.4,2828.1,0.46438023]
[1766005234622,1.9268,2828.9,2828.1,0.57]
[1766005234815,2.4298,2828.9,2828.1,0.50459689]
[1766005235127,1.9268,2829.0,2827.9,0.47545268]
[1766005235435,2.4298,2828.7,2827.9,0.47545268]
[1766005235734,2.4298,2828.7,2828.0,0.46438023]
[1766005236517,2.4298,2828.7,2828.1,0.46438023]
[1766005236717,2.4298,2829.3,2828.2,0.03535817]
[1766005236922,0.24308,2829.4,2828.1,0.46438023]
[1766005237110,0.503,2829.3,2828.2,0.57]
[1766005237310,0.503,2829.3,2828.1,0.46438023]
[1766005237543,0.503,2829.3,2828.2,0.569]
[1766005237904,0.503,2829.3,2828.1,0.46438023]
[1766005238225,2.4298,2829.3,2828.2,4.10480207]
[1766005238535,2.67288,2829.3,2828.3,0.45691823]
[1766005238711,1.9268,2829.2,2828.3,0.45691823]
[1766005239037,0.24308,2829.3,2827.9,4.01157164]
[1766005239239,0.001,2829.4,2828.0,0.46438023]
[1766005239440,0.503,2829.0,2828.1,3.53593558]
[1766005239621,2.4298,2829.0,2828.1,0.46438023]
[1766005239819,1.9268,2829.0,2827.9,0.47545268]
[1766005240047,0.001,2830.1,2828.4,0.405504]
[1766005240337,2.89518023,2830.1,2828.6,0.405504]
[1766005240718,2.89518023,2830.1,2828.3,0.405504]
[1766005240719,2.49,2829.8,2828.3,0.405504]
[1766005240903,2.49,2829.8,2828.4,0.03535567]
[1766005241109,2.49,2829.8,2828.3,0.405504]
[1766005241439,0.4956,2829.7,2828.4,0.57]
[1766005241639,1.9944,2829.4,2828.3,0.57]
[1766005241937,0.46438023,2830.0,2828.2,1.03438023]
[1766005241938,2.49,2829.2,2828.2,1.03438023]
[1766005242312,0.4956,2829.1,2828.1,0.46438023]
[1766005242537,2.49,2829.1,2828.1,0.49973965]
[1766005242740,2.49,2829.0,2828.1,0.81418062]
[1766005242927,2.49,2829.0,2828.2,0.46438023]
[1766005243113,2.49,2829.0,2828.1,0.81418062]
[1766005245740,1.9944,2829.4,2828.2,0.46438023]
[1766005245946,0.4956,2829.2,2828.2,0.46438023]
[1766005246147,2.49,2829.2,2828.3,0.48144696]
[1766005246337,1.9944,2829.2,2828.2,0.46438023]
[1766005246541,0.405504,2829.5,2828.1,0.81418062]
[1766005246542,0.4956,2829.1,2828.1,0.81418062]
[1766005246742,2.49,2828.9,2828.0,0.46438023]
[1766005247123,2.49,2828.9,2828.0,0.46638023]
[1766005247323,2.49,2828.9,2828.1,0.46438023]
[1766005247922,2.49,2828.9,2828.0,0.46638023]
[1766005248122,2.49,2828.9,2828.0,4.00243181]
[1766005248333,2.49,2828.9,2828.1,0.40024318]
[1766005249635,0.46538023,2829.4,2828.1,0.40024318]
[1766005249835,2.49,2829.2,2828.1,0.40024318]
[1766005251047,0.4956,2829.1,2828.1,0.40024318]
[1766005251556,0.4956,2829.1,2828.2,0.46438023]
[1766005251727,2.739,2829.1,2828.2,0.84029917]
[1766005252147,1.9944,2828.8,2828.0,0.002]
[1766005252320,0.4956,2828.7,2828.0,0.002]
[1766005254459,1.9944,2828.8,2828.0,0.002]
[1766005254661,2.739,2829.1,2828.0,0.002]
[1766005255958,0.249,2829.1,2828.0,0.002]
[1766005256127,2.49,2829.0,2828.0,0.75588029]
[1766005256554,0.4956,2828.9,2828.0,0.75588029]
[1766005257141,2.49,2828.9,2828.0,0.75588029]
[1766005257458,0.4956,2828.8,2828.0,0.75588029]
[1766005258779,1.9944,2828.9,2828.0,0.75588029]
[1766005258953,2.2434,2828.9,2828.0,0.75588029]
[1766005259157,2.2434,2828.9,2828.1,0.46438023]
[1766005259354,2.2434,2828.9,2828.0,0.75588029]
[1766005259757,2.739,2828.9,2828.0,0.75588029]
[1766005259942,0.249,2828.9,2828.0,0.75588029]
[1766005260137,1.9944,2829.2,2828.0,0.75588029]
[1766005260338,0.406504,2829.5,2828.0,0.75588029]
[1766005260339,0.001,2829.5,2828.3,0.04933399]
[1766005260570,0.001,2829.5,2828.4,0.03535567]
[1766005260875,0.001,2829.5,2828.6,0.46438023]
[1766005261051,1.9954,2829.5,2828.3,3.53559236]
[1766005261236,1.9954,2829.5,2828.5,0.46438023]
[1766005261442,1.9954,2829.5,2828.6,0.46438023]
[1766005261640,0.001,2829.5,2828.6,0.46438023]
[1766005262259,0.001,2829.5,2828.1,3.5359332]
[1766005262260,1.9944,2829.0,2828.1,3.5359332]
[1766005262465,2.49,2829.0,2828.2,0.46438023]
[1766005262772,0.001,2829.5,2828.2,0.46438023]
[1766005262773,2.49,2829.4,2828.2,7.53601589]
[1766005263072,2.491,2829.5,2828.2,7.53601589]
[1766005263238,2.49,2829.4,2828.3,0.568]
[1766005263770,0.4956,2829.1,2828.3,0.568]
[1766005264075,0.4956,2829.1,2828.4,0.45681981]
[1766005264276,2.49,2829.1,2828.4,0.45681981]
[1766005264573,1.9954,2829.5,2828.4,0.45681981]
[1766005264773,2.49,2829.3,2828.4,3.99236478]
[1766005265074,2.49,2829.3,2828.4,0.45681981]
[1766005265473,2.49,2829.3,2828.4,0.46438023]
[1766005265985,1.9944,2829.3,2828.2,4.00016265]
[1766005266143,2.49,2829.3,2828.2,4.00016265]
[1766005266945,2.49,2829.3,2828.4,0.46438023]
[1766005267141,0.001,2829.5,2828.4,0.46438023]
[1766005267372,0.001,2829.5,2828.5,0.40000609]
[1766005268356,0.001,2829.5,2828.6,0.03535317]
[1766005268545,0.568,2829.8,2828.5,0.96800609]
[1766005268747,0.001,2830.1,2828.5,0.96800609]
[1766005268748,0.001,2830.1,2828.6,0.45483799]
[1766005269053,0.6,2830.2,2829.0,0.405504]
[1766005269278,0.5202,2830.2,2829.2,0.405504]
[1766005269439,0.5202,2830.2,2829.3,0.568]
[1766005269841,0.001,2830.7,2829.4,0.90522741]
[1766005270073,0.04933399,2832.4,2829.9,0.46438023]
[1766005270278,0.04933399,2832.4,2830.0,1.53827743]
[1766005270279,2.0498,2831.6,2830.0,1.53827743]
[1766005270458,2.0498,2831.2,2830.0,1.53827743]
[1766005270778,2.4707,2831.2,2830.0,1.53827743]
[1766005270966,2.0498,2831.2,2830.0,1.53827743]
[1766005271164,2.3813,2831.1,2830.0,1.53827743]
[1766005271366,0.23813,2831.0,2830.1,1.01801529]
[1766005271674,0.23813,2831.0,2830.1,0.55363506]
[1766005271890,0.23813,2831.0,2829.5,3.53413301]
[1766005271891,1.9531,2830.7,2829.5,3.53413301]
[1766005272040,0.23813,2831.0,2828.6,2.58047312]
[1766005272041,0.4282,2830.6,2828.8,9.23839404]